[Event "Titled Tuesday Blitz June 28 Late 2022"]
[White "Balint, Vilmos"]
[Black "Manukian, Artak"]
[WhiteFideId "718050"]
[BlackFideId "13301373"]
[WhiteElo "2059"]
[BlackElo "2464"]
[Result "0-1"]
[Round "05"]
[TimeControl "180+1"]
[Date "2022.06.29"]
[WhiteClock "0:01:06"]
[BlackClock "0:00:46"]

1. e4 {[%clk 0:03:00]}  c6 {[%clk 0:02:59]} 2. d4 {[%clk 0:03:00]}  d5 {[%clk 0:03:00]} 3. e5 {[%clk 0:03:01]}  Bf5 {[%clk 0:02:59]} 4. Nf3 {[%clk 0:03:01]}  e6 {[%clk 0:02:59]} 5. Be2 {[%clk 0:03:02]}  c5 {[%clk 0:02:59]} 6. O-O {[%clk 0:03:01]}  Nc6 {[%clk 0:02:59]} 7. c4 {[%clk 0:03:01]}  dxc4 {[%clk 0:02:59]} 8. Be3 {[%clk 0:02:50]}  cxd4 {[%clk 0:02:45]} 9. Nxd4 {[%clk 0:02:49]}  Nxd4 {[%clk 0:02:45]} 10. Bxd4 {[%clk 0:02:48]}  Ne7 {[%clk 0:02:46]} 11. Bxc4 {[%clk 0:02:39]}  Nc6 {[%clk 0:02:46]} 12. Bb5 {[%clk 0:02:39]}  Be7 {[%clk 0:02:42]} 13. Nc3 {[%clk 0:02:31]}  O-O {[%clk 0:02:41]} 14. Bxc6 {[%clk 0:02:29]}  bxc6 {[%clk 0:02:42]} 15. Qa4 {[%clk 0:02:25]}  c5 {[%clk 0:02:37]} 16. Be3 {[%clk 0:02:25]}  Bd3 {[%clk 0:02:31]} 17. Rfd1 {[%clk 0:02:23]}  c4 {[%clk 0:02:31]} 18. b3 {[%clk 0:02:20]}  Qe8 {[%clk 0:02:27]} 19. bxc4 {[%clk 0:02:17]}  Qxa4 {[%clk 0:02:23]} 20. Nxa4 {[%clk 0:02:18]}  Bxc4 {[%clk 0:02:15]} 21. Rd7 {[%clk 0:02:17]}  Ba3 {[%clk 0:02:12]} 22. Rxa7 {[%clk 0:02:11]}  Rxa7 {[%clk 0:02:11]} 23. Bxa7 {[%clk 0:02:12]}  Ra8 {[%clk 0:02:11]} 24. Nb6 {[%clk 0:02:12]}  Rxa7 {[%clk 0:01:53]} 25. Nxc4 {[%clk 0:02:11]}  g5 {[%clk 0:01:47]} 26. h4 {[%clk 0:02:02]}  h6 {[%clk 0:01:42]} 27. Kh2 {[%clk 0:02:00]}  Kg7 {[%clk 0:01:41]} 28. Kg3 {[%clk 0:01:59]}  Ra4 {[%clk 0:01:40]} 29. Nxa3 {[%clk 0:01:55]}  Rxa3+ {[%clk 0:01:41]} 30. f3 {[%clk 0:01:54]}  Kg6 {[%clk 0:01:37]} 31. hxg5 {[%clk 0:01:53]}  hxg5 {[%clk 0:01:37]} 32. Kg4 {[%clk 0:01:50]}  Ra4+ {[%clk 0:01:36]} 33. Kg3 {[%clk 0:01:50]}  Kf5 {[%clk 0:01:37]} 34. a3 {[%clk 0:01:39]}  Kxe5 {[%clk 0:01:36]} 35. Kf2 {[%clk 0:01:34]}  f5 {[%clk 0:01:32]} 36. g3 {[%clk 0:01:34]}  g4 {[%clk 0:01:28]} 37. f4+ {[%clk 0:01:34]}  Kd6 {[%clk 0:01:27]} 38. Ke3 {[%clk 0:01:33]}  Kc5 {[%clk 0:01:15]} 39. Kd3 {[%clk 0:01:32]}  Rd4+ {[%clk 0:01:13]} 40. Ke3 {[%clk 0:01:18]}  Re4+ {[%clk 0:01:10]} 41. Kd3 {[%clk 0:01:18]}  Kb5 {[%clk 0:01:10]} 42. a4+ {[%clk 0:01:17]}  Ka5 {[%clk 0:01:08]} 43. Ra2 {[%clk 0:01:18]}  Rb4 {[%clk 0:01:07]} 44. Ra1 {[%clk 0:01:16]}  Rb3+ {[%clk 0:01:07]} 45. Kd4 {[%clk 0:01:17]}  Rxg3 {[%clk 0:01:07]} 46. Re1 {[%clk 0:01:17]}  Rf3 {[%clk 0:00:53]} 47. Ke5 {[%clk 0:01:17]}  g3 {[%clk 0:00:50]} 48. Kxe6 {[%clk 0:01:17]}  Rxf4 {[%clk 0:00:49]} 49. Re3 {[%clk 0:01:06]}  g2 {[%clk 0:00:46]} 50. Rg3 {[%clk 0:01:06]}  Rg4 {[%clk 0:00:46]} 0-1


[Site "https://www.chess.com"]

[Event "Titled Tuesday Blitz June 28 Late 2022"]
[White "Barria Zuniga, Daniel"]
[Black "Yurasova, Daria"]
[WhiteFideId "3400816"]
[BlackFideId "34146919"]
[WhiteElo "2414"]
[BlackElo "2021"]
[Result "1-0"]
[Round "05"]
[TimeControl "180+1"]
[Date "2022.06.29"]
[WhiteClock "0:01:01"]
[BlackClock "0:00:18"]

1. d4 {[%clk 0:03:00]}  d5 {[%clk 0:02:56]} 2. c4 {[%clk 0:03:01]}  dxc4 {[%clk 0:02:54]} 3. Nf3 {[%clk 0:03:00]}  Nf6 {[%clk 0:02:54]} 4. e3 {[%clk 0:03:00]}  e6 {[%clk 0:02:50]} 5. Bxc4 {[%clk 0:03:00]}  a6 {[%clk 0:02:51]} 6. Nc3 {[%clk 0:02:59]}  b5 {[%clk 0:02:50]} 7. Bb3 {[%clk 0:03:00]}  c5 {[%clk 0:02:49]} 8. O-O {[%clk 0:03:00]}  Bb7 {[%clk 0:02:48]} 9. Re1 {[%clk 0:02:59]}  Be7 {[%clk 0:02:46]} 10. e4 {[%clk 0:02:59]}  O-O {[%clk 0:02:37]} 11. Bg5 {[%clk 0:02:47]}  h6 {[%clk 0:02:04]} 12. Bxf6 {[%clk 0:02:41]}  Bxf6 {[%clk 0:02:04]} 13. e5 {[%clk 0:02:36]}  Be7 {[%clk 0:02:04]} 14. d5 {[%clk 0:02:35]}  exd5 {[%clk 0:02:04]} 15. Bxd5 {[%clk 0:02:33]}  Bxd5 {[%clk 0:01:44]} 16. Qxd5 {[%clk 0:02:33]}  Qxd5 {[%clk 0:01:40]} 17. Nxd5 {[%clk 0:02:33]}  Nc6 {[%clk 0:01:40]} 18. Rad1 {[%clk 0:02:11]}  Rfd8 {[%clk 0:01:33]} 19. Kf1 {[%clk 0:01:53]}  Bf8 {[%clk 0:01:24]} 20. h4 {[%clk 0:01:46]}  Rac8 {[%clk 0:00:56]} 21. h5 {[%clk 0:01:42]}  Re8 {[%clk 0:00:51]} 22. g4 {[%clk 0:01:37]}  Rcd8 {[%clk 0:00:50]} 23. Nc7 {[%clk 0:01:27]}  Rxd1 {[%clk 0:00:46]} 24. Rxd1 {[%clk 0:01:28]}  Re7 {[%clk 0:00:40]} 25. Nxa6 {[%clk 0:01:23]}  Nxe5 {[%clk 0:00:38]} 26. Nxe5 {[%clk 0:01:23]}  Rxe5 {[%clk 0:00:39]} 27. Rd8 {[%clk 0:01:23]}  f6 {[%clk 0:00:20]} 28. b3 {[%clk 0:01:11]}  Kf7 {[%clk 0:00:20]} 29. Nc7 {[%clk 0:01:06]}  Be7 {[%clk 0:00:19]} 30. Rd7 {[%clk 0:01:05]}  c4 {[%clk 0:00:16]} 31. bxc4 {[%clk 0:01:05]}  bxc4 {[%clk 0:00:17]} 32. Nd5 {[%clk 0:01:05]}  Ke6 {[%clk 0:00:13]} 33. Rxe7+ {[%clk 0:01:03]}  Kxd5 {[%clk 0:00:13]} 34. Rxe5+ {[%clk 0:01:03]}  fxe5 {[%clk 0:00:13]} 35. Ke2 {[%clk 0:01:03]}  Kd4 {[%clk 0:00:14]} 36. Kd2 {[%clk 0:01:03]}  c3+ {[%clk 0:00:12]} 37. Kc2 {[%clk 0:01:03]}  Kc4 {[%clk 0:00:13]} 38. a4 {[%clk 0:01:03]}  Kb4 {[%clk 0:00:12]} 39. a5 {[%clk 0:01:03]}  Kxa5 {[%clk 0:00:13]} 40. Kxc3 {[%clk 0:01:04]}  Kb5 {[%clk 0:00:13]} 41. Kd3 {[%clk 0:01:04]}  Kc5 {[%clk 0:00:14]} 42. Ke4 {[%clk 0:01:05]}  Kd6 {[%clk 0:00:14]} 43. Kf5 {[%clk 0:01:05]}  Kd5 {[%clk 0:00:14]} 44. Kg6 {[%clk 0:01:06]}  Ke4 {[%clk 0:00:15]} 45. Kxg7 {[%clk 0:01:06]}  Kf3 {[%clk 0:00:16]} 46. g5 {[%clk 0:01:06]}  hxg5 {[%clk 0:00:14]} 47. h6 {[%clk 0:01:07]}  Kxf2 {[%clk 0:00:15]} 48. h7 {[%clk 0:01:07]}  e4 {[%clk 0:00:16]} 49. h8=Q {[%clk 0:01:08]}  e3 {[%clk 0:00:17]} 50. Qh2+ {[%clk 0:01:05]}  Kf1 {[%clk 0:00:17]} 51. Qh3+ {[%clk 0:01:04]}  Kf2 {[%clk 0:00:18]} 52. Qf5+ {[%clk 0:01:04]}  Kg2 {[%clk 0:00:18]} 53. Qxg5+ {[%clk 0:01:04]}  Kf2 {[%clk 0:00:19]} 54. Qf4+ {[%clk 0:01:04]}  Ke2 {[%clk 0:00:19]} 55. Kf6 {[%clk 0:01:03]}  Kd3 {[%clk 0:00:16]} 56. Qd6+ {[%clk 0:01:03]}  Kc2 {[%clk 0:00:16]} 57. Qc5+ {[%clk 0:01:03]}  Kd2 {[%clk 0:00:17]} 58. Qd4+ {[%clk 0:01:02]}  Ke2 {[%clk 0:00:18]} 59. Kg5 {[%clk 0:01:01]} 1-0


[Site "https://www.chess.com"]

[Event "Titled Tuesday Blitz June 28 Late 2022"]
[White "Bolourchifard, Farzad"]
[Black "Steinberg, Nitzan"]
[WhiteFideId "12510084"]
[BlackFideId "2801795"]
[WhiteElo "2317"]
[BlackElo "2471"]
[Result "0-1"]
[Round "05"]
[TimeControl "180+1"]
[Date "2022.06.28"]
[WhiteClock "0:00:05"]
[BlackClock "0:00:19"]

1. e4 {[%clk 0:03:00]}  c5 {[%clk 0:02:59]} 2. Nc3 {[%clk 0:03:00]}  d6 {[%clk 0:03:00]} 3. g3 {[%clk 0:03:01]}  g6 {[%clk 0:03:00]} 4. Bg2 {[%clk 0:03:01]}  Bg7 {[%clk 0:03:00]} 5. d3 {[%clk 0:03:02]}  Nc6 {[%clk 0:03:00]} 6. Be3 {[%clk 0:03:02]}  e6 {[%clk 0:02:58]} 7. Qd2 {[%clk 0:03:02]}  Rb8 {[%clk 0:02:56]} 8. Nge2 {[%clk 0:03:02]}  b5 {[%clk 0:02:45]} 9. Nd1 {[%clk 0:03:01]}  b4 {[%clk 0:02:38]} 10. O-O {[%clk 0:03:00]}  h5 {[%clk 0:02:35]} 11. h3 {[%clk 0:03:00]}  Nge7 {[%clk 0:02:29]} 12. a3 {[%clk 0:03:00]}  a5 {[%clk 0:02:25]} 13. axb4 {[%clk 0:03:00]}  axb4 {[%clk 0:02:25]} 14. d4 {[%clk 0:02:59]}  cxd4 {[%clk 0:02:21]} 15. Nxd4 {[%clk 0:03:00]}  Ne5 {[%clk 0:02:21]} 16. b3 {[%clk 0:02:55]}  O-O {[%clk 0:02:12]} 17. Bh6 {[%clk 0:02:53]}  Bb7 {[%clk 0:01:56]} 18. Bxg7 {[%clk 0:02:53]}  Kxg7 {[%clk 0:01:56]} 19. f4 {[%clk 0:02:36]}  N5c6 {[%clk 0:01:56]} 20. Kh2 {[%clk 0:02:35]}  h4 {[%clk 0:01:47]} 21. g4 {[%clk 0:02:34]}  e5 {[%clk 0:01:47]} 22. Nb5 {[%clk 0:02:22]}  exf4 {[%clk 0:01:41]} 23. Qxf4 {[%clk 0:02:16]}  Nc8 {[%clk 0:01:33]} 24. Ne3 {[%clk 0:02:12]}  Qe7 {[%clk 0:01:27]} 25. Rad1 {[%clk 0:01:23]}  Ba6 {[%clk 0:01:14]} 26. Nxd6 {[%clk 0:01:09]}  Nxd6 {[%clk 0:01:14]} 27. Rxd6 {[%clk 0:01:10]}  Bxf1 {[%clk 0:01:14]} 28. Bxf1 {[%clk 0:00:43]}  Qe5 {[%clk 0:01:11]} 29. Qxe5+ {[%clk 0:00:25]}  Nxe5 {[%clk 0:01:11]} 30. Nc4 {[%clk 0:00:26]}  Rfe8 {[%clk 0:01:08]} 31. Nxe5 {[%clk 0:00:25]}  Rxe5 {[%clk 0:01:08]} 32. Bd3 {[%clk 0:00:26]}  Re6 {[%clk 0:00:54]} 33. Rd4 {[%clk 0:00:25]}  Rf6 {[%clk 0:00:44]} 34. Kg2 {[%clk 0:00:24]}  Rf4 {[%clk 0:00:43]} 35. Rd6 {[%clk 0:00:19]}  Ra8 {[%clk 0:00:37]} 36. Rb6 {[%clk 0:00:18]}  Ra1 {[%clk 0:00:37]} 37. Rxb4 {[%clk 0:00:17]}  Re1 {[%clk 0:00:36]} 38. Rb7 {[%clk 0:00:13]}  Re3 {[%clk 0:00:37]} 39. Bc4 {[%clk 0:00:10]}  Rexe4 {[%clk 0:00:29]} 40. Rd7 {[%clk 0:00:08]}  Re3 {[%clk 0:00:24]} 41. Rd2 {[%clk 0:00:06]}  Rg3+ {[%clk 0:00:23]} 42. Kh2 {[%clk 0:00:07]}  Rff3 {[%clk 0:00:23]} 43. Rd7 {[%clk 0:00:05]}  Rxh3+ {[%clk 0:00:21]} 44. Kg2 {[%clk 0:00:05]}  Rhg3+ {[%clk 0:00:21]} 45. Kh2 {[%clk 0:00:05]}  Rf2+ {[%clk 0:00:21]} 46. Kh1 {[%clk 0:00:05]}  h3 {[%clk 0:00:21]} 47. g5 {[%clk 0:00:05]}  h2 {[%clk 0:00:19]} 0-1


[Site "https://www.chess.com"]

[Event "Titled Tuesday Blitz June 28 Late 2022"]
[White "Boruchovsky, Avital"]
[Black "Oparin, Grigoriy"]
[WhiteFideId "2800055"]
[BlackFideId "24125890"]
[WhiteElo "2466"]
[BlackElo "2639"]
[Result "1-0"]
[Round "05"]
[TimeControl "180+1"]
[Date "2022.06.28"]
[WhiteClock "0:00:15"]
[BlackClock "0:00:36"]

1. e4 {[%clk 0:03:00]}  c5 {[%clk 0:03:00]} 2. Nf3 {[%clk 0:03:01]}  d6 {[%clk 0:03:01]} 3. Bb5+ {[%clk 0:03:01]}  Bd7 {[%clk 0:03:00]} 4. Bxd7+ {[%clk 0:03:00]}  Nxd7 {[%clk 0:03:01]} 5. O-O {[%clk 0:03:00]}  Ngf6 {[%clk 0:03:02]} 6. Qe2 {[%clk 0:03:00]}  e6 {[%clk 0:03:02]} 7. c3 {[%clk 0:02:59]}  Be7 {[%clk 0:03:03]} 8. d4 {[%clk 0:02:59]}  O-O {[%clk 0:03:03]} 9. Rd1 {[%clk 0:02:58]}  Qb6 {[%clk 0:02:58]} 10. e5 {[%clk 0:02:43]}  Ne8 {[%clk 0:02:55]} 11. exd6 {[%clk 0:02:40]}  Nxd6 {[%clk 0:02:54]} 12. Na3 {[%clk 0:02:33]}  Rfe8 {[%clk 0:02:40]} 13. Be3 {[%clk 0:02:31]}  Qc7 {[%clk 0:02:36]} 14. Bf4 {[%clk 0:02:27]}  a6 {[%clk 0:02:35]} 15. Nc4 {[%clk 0:02:22]}  Qc6 {[%clk 0:02:24]} 16. Nxd6 {[%clk 0:02:08]}  Bxd6 {[%clk 0:02:25]} 17. Bxd6 {[%clk 0:02:09]}  Qxd6 {[%clk 0:02:25]} 18. dxc5 {[%clk 0:02:09]}  Qc7 {[%clk 0:02:23]} 19. b4 {[%clk 0:02:08]}  b6 {[%clk 0:02:19]} 20. Qd3 {[%clk 0:01:58]}  Red8 {[%clk 0:02:18]} 21. Qd6 {[%clk 0:01:53]}  Qxd6 {[%clk 0:02:17]} 22. Rxd6 {[%clk 0:01:51]}  Nf6 {[%clk 0:02:14]} 23. Rxd8+ {[%clk 0:01:27]}  Rxd8 {[%clk 0:02:13]} 24. cxb6 {[%clk 0:01:28]}  Nd5 {[%clk 0:02:09]} 25. Rd1 {[%clk 0:01:24]}  Rb8 {[%clk 0:02:09]} 26. b7 {[%clk 0:01:13]}  h6 {[%clk 0:02:08]} 27. c4 {[%clk 0:01:03]}  Nxb4 {[%clk 0:02:05]} 28. Rd7 {[%clk 0:01:01]}  a5 {[%clk 0:01:44]} 29. Ne5 {[%clk 0:00:39]}  Kh7 {[%clk 0:01:07]} 30. Rxf7 {[%clk 0:00:32]}  a4 {[%clk 0:00:49]} 31. a3 {[%clk 0:00:30]}  Na6 {[%clk 0:00:49]} 32. Nc6 {[%clk 0:00:27]}  Re8 {[%clk 0:00:49]} 33. h4 {[%clk 0:00:24]}  e5 {[%clk 0:00:48]} 34. Re7 {[%clk 0:00:20]}  Rf8 {[%clk 0:00:43]} 35. Rxe5 {[%clk 0:00:19]}  Rf7 {[%clk 0:00:37]} 36. Rb5 {[%clk 0:00:18]}  Rc7 {[%clk 0:00:36]} 37. Rb6 {[%clk 0:00:15]} 1-0


[Site "https://www.chess.com"]

[Event "Titled Tuesday Blitz June 28 Late 2022"]
[White "Capp, Stephen"]
[Black "Kapitsyn, Mark"]
[WhiteFideId "2027089"]
[BlackFideId "4116240"]
[WhiteElo "2146"]
[BlackElo "2281"]
[Result "1-0"]
[Round "05"]
[TimeControl "180+1"]
[Date "2022.06.29"]
[WhiteClock "0:00:02"]
[BlackClock "0:00:01"]

1. e4 {[%clk 0:03:00]}  c5 {[%clk 0:02:59]} 2. Nc3 {[%clk 0:03:00]}  Nc6 {[%clk 0:02:55]} 3. f4 {[%clk 0:02:59]}  e6 {[%clk 0:02:44]} 4. Nf3 {[%clk 0:02:58]}  d5 {[%clk 0:02:42]} 5. Bb5 {[%clk 0:02:56]}  d4 {[%clk 0:02:40]} 6. Bxc6+ {[%clk 0:02:55]}  bxc6 {[%clk 0:02:41]} 7. Nb1 {[%clk 0:02:55]}  Nf6 {[%clk 0:02:34]} 8. d3 {[%clk 0:02:55]}  Be7 {[%clk 0:02:34]} 9. O-O {[%clk 0:02:51]}  O-O {[%clk 0:02:29]} 10. b3 {[%clk 0:02:51]}  a5 {[%clk 0:02:28]} 11. a4 {[%clk 0:02:50]}  Rb8 {[%clk 0:02:24]} 12. Na3 {[%clk 0:02:50]}  Ba6 {[%clk 0:02:11]} 13. Bd2 {[%clk 0:02:50]}  Nd7 {[%clk 0:02:00]} 14. Qe1 {[%clk 0:02:48]}  f5 {[%clk 0:01:51]} 15. Bxa5 {[%clk 0:02:43]}  Qe8 {[%clk 0:01:52]} 16. e5 {[%clk 0:02:29]}  Qh5 {[%clk 0:01:44]} 17. Qg3 {[%clk 0:02:08]}  Kh8 {[%clk 0:01:38]} 18. Qh3 {[%clk 0:02:01]}  Qg6 {[%clk 0:01:22]} 19. Rae1 {[%clk 0:01:50]}  Nb6 {[%clk 0:01:12]} 20. Bd2 {[%clk 0:01:39]}  Nd5 {[%clk 0:01:11]} 21. Kh1 {[%clk 0:01:31]}  h6 {[%clk 0:00:46]} 22. Nh4 {[%clk 0:01:23]}  Qh5 {[%clk 0:00:42]} 23. Nf3 {[%clk 0:01:17]}  Qg4 {[%clk 0:00:40]} 24. Qg3 {[%clk 0:01:11]}  Kh7 {[%clk 0:00:34]} 25. Re2 {[%clk 0:01:04]}  Qxg3 {[%clk 0:00:27]} 26. hxg3 {[%clk 0:01:03]}  Nb4 {[%clk 0:00:26]} 27. Nc4 {[%clk 0:00:54]}  Nxc2 {[%clk 0:00:25]} 28. Ba5 {[%clk 0:00:42]}  Bxc4 {[%clk 0:00:23]} 29. bxc4 {[%clk 0:00:38]}  Ra8 {[%clk 0:00:16]} 30. Rxc2 {[%clk 0:00:35]}  Rxa5 {[%clk 0:00:16]} 31. Ra2 {[%clk 0:00:32]}  Rb8 {[%clk 0:00:16]} 32. Rfa1 {[%clk 0:00:24]}  Rb3 {[%clk 0:00:16]} 33. Ra3 {[%clk 0:00:22]}  Rb2 {[%clk 0:00:15]} 34. Ne1 {[%clk 0:00:16]}  g5 {[%clk 0:00:13]} 35. Kh2 {[%clk 0:00:14]}  Kg6 {[%clk 0:00:13]} 36. R1a2 {[%clk 0:00:13]}  Rb1 {[%clk 0:00:13]} 37. Nc2 {[%clk 0:00:13]}  Rd1 {[%clk 0:00:13]} 38. Na1 {[%clk 0:00:11]}  gxf4 {[%clk 0:00:04]} 39. gxf4 {[%clk 0:00:10]}  Kh5 {[%clk 0:00:05]} 40. Nb3 {[%clk 0:00:10]}  Ra8 {[%clk 0:00:05]} 41. a5 {[%clk 0:00:08]}  Rxd3 {[%clk 0:00:06]} 42. a6 {[%clk 0:00:08]}  Kg4 {[%clk 0:00:05]} 43. Nc1 {[%clk 0:00:07]}  Rxa3 {[%clk 0:00:05]} 44. Rxa3 {[%clk 0:00:07]}  Kxf4 {[%clk 0:00:05]} 45. Nd3+ {[%clk 0:00:07]}  Ke4 {[%clk 0:00:05]} 46. g3 {[%clk 0:00:06]}  Ra7 {[%clk 0:00:02]} 47. Kg2 {[%clk 0:00:06]}  Bg5 {[%clk 0:00:02]} 48. Kf2 {[%clk 0:00:06]}  f4 {[%clk 0:00:01]} 49. Nxc5+ {[%clk 0:00:06]}  Kxe5 {[%clk 0:00:01]} 50. Nd7+ {[%clk 0:00:03]}  Kd6 {[%clk 0:00:01]} 51. Nb6 {[%clk 0:00:02]} 1-0


[Site "https://www.chess.com"]

[Event "Titled Tuesday Blitz June 28 Late 2022"]
[White "Cappelletto, Joshuaede"]
[Black "Diaz, Fernando"]
[WhiteFideId "2824383"]
[BlackFideId "3701255"]
[WhiteElo "1761"]
[BlackElo "1934"]
[Result "0-1"]
[Round "05"]
[TimeControl "180+1"]
[Date "2022.06.29"]
[WhiteClock "0:00:12"]
[BlackClock "0:00:04"]

1. e4 {[%clk 0:02:57]}  e6 {[%clk 0:02:54]} 2. d4 {[%clk 0:02:56]}  d5 {[%clk 0:02:54]} 3. Nc3 {[%clk 0:02:57]}  Bb4 {[%clk 0:02:53]} 4. e5 {[%clk 0:02:57]}  c5 {[%clk 0:02:54]} 5. a3 {[%clk 0:02:57]}  Bxc3+ {[%clk 0:02:54]} 6. bxc3 {[%clk 0:02:58]}  Ne7 {[%clk 0:02:55]} 7. Qg4 {[%clk 0:02:58]}  Qc7 {[%clk 0:02:55]} 8. Qxg7 {[%clk 0:02:55]}  Rg8 {[%clk 0:02:55]} 9. Qxh7 {[%clk 0:02:56]}  cxd4 {[%clk 0:02:55]} 10. Ne2 {[%clk 0:02:57]}  Nbc6 {[%clk 0:02:55]} 11. f4 {[%clk 0:02:56]}  dxc3 {[%clk 0:02:55]} 12. h4 {[%clk 0:02:56]}  Bd7 {[%clk 0:02:54]} 13. h5 {[%clk 0:02:56]}  O-O-O {[%clk 0:02:55]} 14. h6 {[%clk 0:02:56]}  Nf5 {[%clk 0:02:41]} 15. Qxf7 {[%clk 0:02:55]}  Rdf8 {[%clk 0:02:39]} 16. h7 {[%clk 0:02:54]}  Rh8 {[%clk 0:02:33]} 17. Qg6 {[%clk 0:02:29]}  d4 {[%clk 0:02:18]} 18. g4 {[%clk 0:02:26]}  Nfe7 {[%clk 0:02:12]} 19. Qd3 {[%clk 0:02:16]}  Be8 {[%clk 0:01:50]} 20. Bg2 {[%clk 0:02:16]}  Bg6 {[%clk 0:01:06]} 21. Be4 {[%clk 0:02:15]}  Bxe4 {[%clk 0:00:58]} 22. Qxe4 {[%clk 0:02:16]}  Qd7 {[%clk 0:00:56]} 23. a4 {[%clk 0:01:57]}  Qd5 {[%clk 0:00:35]} 24. Qxd5 {[%clk 0:01:44]}  Nxd5 {[%clk 0:00:35]} 25. g5 {[%clk 0:01:44]}  Rf7 {[%clk 0:00:34]} 26. Ba3 {[%clk 0:00:57]}  Rfxh7 {[%clk 0:00:33]} 27. O-O {[%clk 0:00:57]}  Ne3 {[%clk 0:00:26]} 28. Rfc1 {[%clk 0:00:41]}  Rh1+ {[%clk 0:00:20]} 29. Kf2 {[%clk 0:00:41]}  R1h2+ {[%clk 0:00:19]} 30. Kf3 {[%clk 0:00:37]}  R8h3+ {[%clk 0:00:16]} 31. Ke4 {[%clk 0:00:29]}  Rxe2 {[%clk 0:00:14]} 32. Kd3 {[%clk 0:00:29]}  Reh2 {[%clk 0:00:13]} 33. Rg1 {[%clk 0:00:23]}  Nd5+ {[%clk 0:00:13]} 34. Kc4 {[%clk 0:00:23]}  Ne3+ {[%clk 0:00:12]} 35. Kc5 {[%clk 0:00:23]}  Nxc2 {[%clk 0:00:12]} 36. g6 {[%clk 0:00:22]}  Rh8 {[%clk 0:00:12]} 37. Ra2 {[%clk 0:00:19]}  d3 {[%clk 0:00:11]} 38. Kd6 {[%clk 0:00:18]}  Nd8 {[%clk 0:00:09]} 39. Ke7 {[%clk 0:00:18]}  Rg8 {[%clk 0:00:09]} 40. Bd6 {[%clk 0:00:16]}  Rf2 {[%clk 0:00:08]} 41. f5 {[%clk 0:00:14]}  Rxf5 {[%clk 0:00:08]} 42. Rg3 {[%clk 0:00:14]}  Ne1 {[%clk 0:00:06]} 43. Ra3 {[%clk 0:00:14]}  Rg7+ {[%clk 0:00:07]} 44. Ke8 {[%clk 0:00:14]}  Rg8+ {[%clk 0:00:06]} 45. Ke7 {[%clk 0:00:14]}  c2 {[%clk 0:00:06]} 46. Rc3+ {[%clk 0:00:13]}  Nc6+ {[%clk 0:00:07]} 47. Kxe6 {[%clk 0:00:13]}  Rf2 {[%clk 0:00:06]} 48. g7 {[%clk 0:00:12]}  d2 {[%clk 0:00:04]} 0-1


[Site "https://www.chess.com"]

[Event "Titled Tuesday Blitz June 28 Late 2022"]
[White "Chen, Max"]
[Black "Popilski, Gil"]
[WhiteFideId "2622440"]
[BlackFideId "2809060"]
[WhiteElo "2406"]
[BlackElo "2537"]
[Result "1-0"]
[Round "05"]
[TimeControl "180+1"]
[Date "2022.06.29"]
[WhiteClock "0:00:07"]
[BlackClock "0:00:27"]

1. e4 {[%clk 0:03:00]}  c5 {[%clk 0:02:55]} 2. c3 {[%clk 0:02:56]}  Nf6 {[%clk 0:02:53]} 3. e5 {[%clk 0:02:56]}  Nd5 {[%clk 0:02:52]} 4. d4 {[%clk 0:02:54]}  cxd4 {[%clk 0:02:53]} 5. Nf3 {[%clk 0:02:44]}  d6 {[%clk 0:02:52]} 6. cxd4 {[%clk 0:02:44]}  e6 {[%clk 0:02:50]} 7. Bc4 {[%clk 0:02:43]}  Be7 {[%clk 0:02:45]} 8. O-O {[%clk 0:02:42]}  O-O {[%clk 0:02:43]} 9. Nc3 {[%clk 0:02:39]}  dxe5 {[%clk 0:02:28]} 10. Bxd5 {[%clk 0:02:32]}  exd4 {[%clk 0:01:46]} 11. Qxd4 {[%clk 0:02:04]}  exd5 {[%clk 0:01:46]} 12. Nxd5 {[%clk 0:01:50]}  Nc6 {[%clk 0:01:43]} 13. Nxe7+ {[%clk 0:01:24]}  Qxe7 {[%clk 0:01:44]} 14. Qc3 {[%clk 0:01:21]}  Bf5 {[%clk 0:01:39]} 15. Re1 {[%clk 0:01:19]}  Qd6 {[%clk 0:01:36]} 16. Be3 {[%clk 0:01:18]}  Rad8 {[%clk 0:01:34]} 17. Bc5 {[%clk 0:01:15]}  Qd5 {[%clk 0:01:20]} 18. Bxf8 {[%clk 0:01:13]}  Kxf8 {[%clk 0:01:20]} 19. a3 {[%clk 0:01:09]}  a5 {[%clk 0:01:15]} 20. Rac1 {[%clk 0:01:02]}  Be4 {[%clk 0:01:14]} 21. Re3 {[%clk 0:00:23]}  b6 {[%clk 0:01:10]} 22. h3 {[%clk 0:00:22]}  Rd6 {[%clk 0:01:05]} 23. Rce1 {[%clk 0:00:21]}  Re6 {[%clk 0:01:03]} 24. Ng5 {[%clk 0:00:06]}  Qxg5 {[%clk 0:01:02]} 25. Rxe4 {[%clk 0:00:06]}  Rxe4 {[%clk 0:01:03]} 26. Rxe4 {[%clk 0:00:06]}  Qd5 {[%clk 0:01:03]} 27. Re1 {[%clk 0:00:05]}  h6 {[%clk 0:01:02]} 28. Qe3 {[%clk 0:00:05]}  g6 {[%clk 0:00:57]} 29. Qxb6 {[%clk 0:00:05]}  Kg7 {[%clk 0:00:55]} 30. Qe3 {[%clk 0:00:05]}  a4 {[%clk 0:00:53]} 31. Qc3+ {[%clk 0:00:05]}  Kh7 {[%clk 0:00:52]} 32. Rc1 {[%clk 0:00:05]}  Nd4 {[%clk 0:00:51]} 33. Qe3 {[%clk 0:00:05]}  Nf5 {[%clk 0:00:50]} 34. Qf3 {[%clk 0:00:05]}  Qd2 {[%clk 0:00:49]} 35. Qc3 {[%clk 0:00:05]}  Qd5 {[%clk 0:00:47]} 36. Re1 {[%clk 0:00:05]}  Nh4 {[%clk 0:00:46]} 37. Qg3 {[%clk 0:00:05]}  Nf5 {[%clk 0:00:46]} 38. Qf3 {[%clk 0:00:06]}  Qd2 {[%clk 0:00:45]} 39. Qe2 {[%clk 0:00:06]}  Qd5 {[%clk 0:00:44]} 40. g3 {[%clk 0:00:07]}  Nd4 {[%clk 0:00:43]} 41. Qe4 {[%clk 0:00:06]}  Nf3+ {[%clk 0:00:39]} 42. Kh1 {[%clk 0:00:06]}  Qb3 {[%clk 0:00:38]} 43. Re3 {[%clk 0:00:06]}  Qd1+ {[%clk 0:00:38]} 44. Kg2 {[%clk 0:00:06]}  Nd2 {[%clk 0:00:33]} 45. Qd3 {[%clk 0:00:06]}  Qc1 {[%clk 0:00:29]} 46. Re7 {[%clk 0:00:06]}  Kg8 {[%clk 0:00:27]} 47. Qd8+ {[%clk 0:00:06]}  Kg7 {[%clk 0:00:27]} 48. Qd4+ {[%clk 0:00:06]}  Kg8 {[%clk 0:00:27]} 49. Re8+ {[%clk 0:00:06]}  Kh7 {[%clk 0:00:27]} 50. Rh8# {[%clk 0:00:07]} 1-0


[Site "https://www.chess.com"]